bitfinex/quotes_SOLUSD_20260306
["timestamp","ask_amount","ask_price","bid_price","bid_amount"]
[1772787967763,0.46854748,88.293,88.258,0.07589829]
[1772787969073,0.46854748,88.291,88.258,0.07589829]
[1772787969684,0.46854748,88.291,88.252,0.36022143]
[1772787970365,0.46854748,88.291,88.253,0.07589829]
[1772787971266,0.46854748,88.289,88.254,0.07589829]
[1772787975979,0.46854748,88.299,88.255,0.07589829]
[1772787976693,0.46854748,88.299,88.258,0.07589829]
[1772787977590,0.46854748,88.299,88.259,0.28432314]
[1772787977778,0.46854748,88.299,88.26,0.07589829]
[1772787978292,0.46854748,88.305,88.26,0.07589829]
[1772787980989,0.46854748,88.305,88.262,0.07589829]
[1772787982799,11.32451531,88.304,88.263,0.28432314]
[1772787983007,0.46854748,88.303,88.264,0.07589829]
[1772787985181,0.46854748,88.303,88.266,0.07589829]
[1772787985381,0.46854748,88.301,88.266,0.07589829]
[1772787986084,0.46854748,88.318,88.27,0.07589829]
[1772787986287,0.46854748,88.318,88.272,0.07589829]
[1772787986500,0.46854748,88.318,88.274,0.07589829]
[1772787987605,0.46854748,88.337,88.278,0.07589829]
[1772787987809,0.46854748,88.337,88.28,0.07589829]
[1772787987992,0.46854748,88.337,88.282,0.07589829]
[1772787988306,0.46854748,88.337,88.284,0.07589829]
[1772787988492,0.46854748,88.337,88.286,0.07589829]
[1772787988692,0.46854748,88.337,88.29,0.07589829]
[1772787989084,0.46854748,88.335,88.29,0.07589829]
[1772787989703,0.46854748,88.333,88.29,0.07589829]
[1772787991118,0.46854748,88.331,88.292,0.07589829]
[1772787992805,11.32118193,88.33,88.292,39.71708887]
[1772787993002,28.30231399,88.332,88.292,39.71708887]
[1772787993003,0.4946421,88.329,88.294,0.07589829]
[1772787996508,0.4946421,88.329,88.296,0.07589829]
[1772787998706,0.4946421,88.329,88.298,0.07589829]
[1772788000801,0.4946421,88.329,88.3,0.07589829]
[1772788001992,28.90324674,88.348,88.301,0.46788111]
[1772788002299,11.31900347,88.347,88.301,0.46788111]
[1772788002805,11.31900347,88.347,88.304,0.46788111]
[1772788003917,0.4946421,88.346,88.304,0.46788111]
[1772788004321,0.4946421,88.346,88.308,3.69383402]
[1772788004617,28.90324674,88.348,88.309,0.46788111]
[1772788004942,28.90324674,88.348,88.31,0.46788111]
[1772788005122,0.4946421,88.347,88.31,0.46788111]
[1772788007000,0.4946421,88.347,88.313,0.46788111]
[1772788007312,0.4946421,88.345,88.294,0.46788111]
[1772788007518,0.4946421,88.343,88.294,0.46788111]
[1772788008413,0.4946421,88.342,88.294,0.46788111]
[1772788008908,0.4946421,88.34,88.295,11.32566963]
[1772788009112,0.4946421,88.338,88.295,11.32566963]
[1772788009308,0.4946421,88.336,88.295,11.32566963]
[1772788009506,0.4946421,88.334,88.295,11.32566963]
[1772788010720,0.4946421,88.333,88.295,11.32566963]
[1772788010919,0.4946421,88.331,88.288,11.32656759]
[1772788011816,0.4946421,88.331,88.289,0.46788111]
[1772788013300,0.4946421,88.328,88.29,11.32631102]
[1772788014525,1.1310298,88.33,88.29,11.32631102]
[1772788014526,0.4946421,88.326,88.29,0.46788111]
[1772788016521,11.32182281,88.325,88.291,11.32618273]
[1772788016728,0.4946421,88.324,88.291,11.32618273]
[1772788017322,0.4946421,88.323,88.291,11.32618273]
[1772788018225,0.4946421,88.323,88.291,11.79406384]
[1772788018724,1.1310298,88.324,88.291,11.79406384]
[1772788018725,0.4946421,88.321,88.291,11.79406384]
[1772788018912,0.4946421,88.321,88.291,11.32618273]
[1772788021021,0.4946421,88.319,88.288,0.46788111]
[1772788022907,0.4946421,88.319,88.29,0.48668441]
[1772788024812,0.4946421,88.319,88.292,0.48668441]
[1772788026126,0.4946421,88.319,88.293,0.48668441]
[1772788026730,11.32135819,88.329,88.294,0.48668441]
[1772788027112,39.61830591,88.343,88.296,0.48668441]
[1772788027329,1.1310298,88.342,88.296,0.48668441]
[1772788028629,0.47817498,88.341,88.296,0.48668441]
[1772788028935,39.61830591,88.343,88.296,0.48668441]
[1772788028936,0.47817498,88.339,88.296,0.48668441]
[1772788029233,0.47817498,88.337,88.296,0.48668441]
[1772788029436,0.47817498,88.334,88.298,0.48668441]
[1772788029623,0.47817498,88.333,88.298,0.48668441]
[1772788031931,11.32092559,88.332,88.299,11.32515657]
[1772788032139,0.47817498,88.331,88.3,0.48668441]
[1772788034621,0.47817498,88.329,88.295,0.48668441]
[1772788034826,0.47817498,88.329,88.293,11.32592617]
[1772788035127,0.47817498,88.327,88.293,11.32592617]
[1772788035329,0.47817498,88.325,88.293,11.32592617]
[1772788035521,0.47817498,88.323,88.293,11.32592617]
[1772788035726,0.47817498,88.321,88.293,11.32592617]
[1772788036638,0.47817498,88.319,88.285,11.32695248]
[1772788036941,0.47817498,88.319,88.286,0.48668441]
[1772788038843,0.47817498,88.319,88.288,0.48668441]
[1772788039142,28.30023663,88.339,88.289,0.48668441]
[1772788039143,0.47817498,88.33,88.289,0.48668441]
[1772788039534,50.77985374,88.36,88.288,0.28432314]
[1772788039535,0.47817498,88.335,88.292,0.48668441]
[1772788040423,0.47817498,88.34,88.292,0.48668441]
[1772788040627,0.47817498,88.347,88.295,0.48668441]
[1772788040821,0.47817498,88.347,88.302,0.48668441]
[1772788041025,0.47817498,88.347,88.303,0.48668441]
[1772788042039,11.31913159,88.346,88.304,39.63580358]
[1772788042245,0.47817498,88.345,88.306,0.48668441]
[1772788044350,0.47817498,88.345,88.298,56.62642415]
[1772788044351,0.47817498,88.345,88.309,0.48668441]
[1772788046734,0.47817498,88.343,88.312,0.48668441]
[1772788049857,0.47817498,88.343,88.314,0.48668441]
[1772788050035,0.47817498,88.341,88.314,0.48668441]
[1772788051768,0.47817498,88.341,88.315,11.32310479]
[1772788053359,0.47817498,88.341,88.315,0.48087857]
[1772788054161,0.49430861,88.347,88.315,0.48087857]
[1772788054960,0.49430861,88.353,88.317,0.48087857]
[1772788056757,0.49430861,88.351,88.319,0.48087857]
[1772788058657,0.49430861,88.349,88.321,0.48087857]
[1772788059560,0.49430861,88.347,88.314,11.32322954]
[1772788059855,0.49430861,88.345,88.314,11.32322954]
[1772788060042,0.49430861,88.343,88.314,11.32322954]
[1772788060361,0.49430861,88.341,88.314,11.32322954]
[1772788061239,0.49430861,88.339,88.308,28.30974272]
[1772788061561,0.49430861,88.339,88.306,11.32425882]
[1772788062060,0.49430861,88.339,88.306,11.80513739]
[1772788062640,0.49430861,88.339,88.307,0.48087857]
[1772788063659,0.49430861,88.339,88.31,0.48087857]
[1772788063861,0.49430861,88.337,88.308,11.32400235]
[1772788064059,0.49430861,88.337,88.309,0.48087857]
[1772788065657,0.49430861,88.335,88.31,11.32374589]
[1772788066561,0.49430861,88.335,88.311,0.48087857]
[1772788069669,0.49430861,88.334,88.312,11.32348944]
[1772788069875,0.49430861,88.334,88.312,11.80436801]
[1772788071177,0.49430861,88.334,88.313,0.48087857]
[1772788071752,0.49430861,88.334,88.314,11.323233]
[1772788072568,0.49430861,88.332,88.308,11.32387467]
[1772788073654,0.49430861,88.33,88.302,11.3247718]
[1772788073867,0.49430861,88.329,88.302,11.3247718]
[1772788075251,0.49430861,88.327,88.302,11.3247718]
[1772788076352,0.49430861,88.325,88.293,11.32592617]
[1772788076758,0.49430861,88.325,88.293,0.48087857]
[1772788076976,0.49430861,88.323,88.289,11.32632825]
[1772788077966,0.49430861,88.321,88.289,11.32632825]
[1772788078778,0.49430861,88.32,88.289,11.32632825]
[1772788079774,0.49430861,88.32,88.255,102.0]
[1772788079775,0.49430861,88.319,88.275,0.48087857]
[1772788080001,0.49430861,88.317,88.276,11.32810729]
[1772788080957,0.49430861,88.317,88.277,0.48087857]
[1772788081779,0.45719916,88.315,88.277,0.48087857]
[1772788082575,1.1310298,88.327,88.28,0.45222523]
[1772788082774,0.45719916,88.332,88.28,0.45222523]
[1772788083266,0.45719916,88.332,88.283,0.45222523]
[1772788083674,0.45719916,88.33,88.286,0.45222523]
[1772788086455,0.45719916,88.328,88.288,0.28432314]
[1772788086676,0.45719916,88.328,88.289,0.45222523]
[1772788088467,0.45719916,88.326,88.292,0.45222523]
[1772788089487,0.45719916,88.326,88.287,0.45222523]
[1772788089693,0.45719916,88.324,88.282,0.73654837]
[1772788089989,0.45719916,88.322,88.282,0.73654837]
[1772788090174,0.45719916,88.32,88.282,0.73654837]
[1772788090376,0.45719916,88.318,88.282,0.73654837]
[1772788090578,0.45719916,88.315,88.283,11.32720908]
[1772788092402,0.45719916,88.315,88.283,11.77943431]
[1772788092588,0.45719916,88.313,88.283,11.77943431]
[1772788093397,0.45719916,88.311,88.284,0.45222523]
[1772788094792,0.45719916,88.309,88.285,11.77917771]
[1772788095794,0.45719916,88.309,88.286,0.45222523]
[1772788097182,0.45719916,88.307,88.286,0.45222523]
[1772788098090,0.45719916,88.307,88.281,11.77961344]
[1772788099484,0.45719916,88.305,88.281,0.45222523]
[1772788099797,0.45719916,88.305,88.282,11.32733739]
[1772788101602,0.45719916,88.303,88.282,11.32733739]
[1772788102722,0.45719916,88.303,88.273,0.45222523]
[1772788103003,0.45719916,88.301,88.271,0.45222523]
[1772788108503,0.45719916,88.299,88.273,0.45222523]
[1772788112282,0.47336364,88.297,88.257,28.81358857]
[1772788112600,0.47336364,88.295,88.258,0.48740409]
[1772788112794,0.47336364,88.293,88.258,0.48740409]
[1772788113008,0.47336364,88.291,88.258,0.48740409]
[1772788114292,0.47336364,88.29,88.258,0.48740409]
[1772788115791,0.47336364,88.288,88.26,0.48740409]
[1772788117293,0.47336364,88.286,88.262,0.48740409]
[1772788119611,0.47336364,88.286,88.263,11.32977578]
[1772788119988,0.47336364,88.284,88.263,11.32977578]
[1772788121009,3.58069903,88.27,88.248,1e-08]
[1772788121309,0.47336364,88.279,88.221,0.48740409]
[1772788121310,0.47336364,88.259,88.221,0.48740409]
[1772788121606,0.47336364,88.257,88.221,0.48740409]
[1772788121809,11.33041763,88.258,88.208,0.48740409]
[1772788121810,0.47336364,88.239,88.208,0.48740409]
[1772788122490,0.47336364,88.229,88.2,0.2]
[1772788122793,0.47336364,88.219,88.191,7.43583476]
[1772788123000,0.47336364,88.209,88.191,7.43583476]
[1772788123191,0.47336364,88.209,88.19,0.2]
[1772788123411,0.47336364,88.209,88.177,0.48740409]
[1772788123787,0.47336364,88.199,88.163,0.48740409]
[1772788124097,0.47336364,88.199,88.168,11.34195135]
[1772788124290,0.47336364,88.199,88.163,0.48740409]
[1772788125193,0.47336364,88.189,88.159,0.2101116]
[1772788125717,0.47336364,88.177,88.15,0.2]
[1772788127790,0.47336364,88.175,88.15,0.2]
[1772788129904,0.47336364,88.173,88.15,0.2]
[1772788130696,7.05908501,88.199,88.152,0.48740409]
[1772788130697,0.47336364,88.192,88.152,0.48740409]
[1772788130903,7.05908501,88.199,88.153,0.48740409]
[1772788131511,7.53244865,88.199,88.153,0.48740409]
[1772788131814,11.81148922,88.198,88.153,0.48740409]
[1772788132013,0.47336364,88.198,88.156,0.48740409]
[1772788132191,7.05908501,88.199,88.156,0.48740409]
[1772788134110,0.47336364,88.201,88.159,0.48740409]
[1772788134300,0.47336364,88.2,88.159,0.48740409]
[1772788137114,0.47336364,88.198,88.162,0.48740409]
[1772788139400,47.2,88.234,88.158,0.48740409]
[1772788139401,0.47336364,88.196,88.158,0.48740409]
[1772788139633,0.47336364,88.194,88.152,0.48740409]
[1772788139833,0.47336364,88.189,88.15,0.2]
[1772788140134,0.47336364,88.187,88.15,0.2]
[1772788140436,0.47336364,88.185,88.15,0.2]
[1772788140604,0.47336364,88.183,88.15,0.2]
[1772788140801,0.47336364,88.181,88.15,0.2]
[1772788141002,0.47336364,88.179,88.15,0.2]
[1772788141202,0.47336364,88.177,88.15,0.2]
[1772788141408,0.47336364,88.174,88.15,0.2]
[1772788141708,0.4546582,88.173,88.15,0.2]
[1772788141908,0.4546582,88.159,88.12,0.46010403]
[1772788143425,0.4546582,88.157,88.122,0.46010403]
[1772788143626,0.4546582,88.157,88.116,0.46010403]
[1772788143827,0.4546582,88.149,88.109,0.46010403]
[1772788144813,0.4546582,88.147,88.111,0.46010403]
[1772788146725,0.4546582,88.145,88.113,0.46010403]
[1772788149215,0.4546582,88.143,88.107,0.46010403]
[1772788149524,39.70775095,88.144,88.101,0.46010403]
[1772788149525,0.4546582,88.139,88.101,0.46010403]
[1772788149729,0.4546582,88.139,88.095,0.46010403]
[1772788150516,39.70775095,88.144,88.095,0.46010403]
[1772788150730,0.4546582,88.143,88.095,0.46010403]
[1772788150937,1.1310298,88.144,88.095,0.46010403]
[1772788151433,1.1310298,88.144,88.098,0.46010403]
[1772788152329,0.4546582,88.15,88.098,0.46010403]
[1772788153127,1.1310298,88.149,88.098,0.46010403]
[1772788153315,0.4546582,88.148,88.098,0.46010403]
[1772788153514,0.4546582,88.145,88.101,0.46010403]
[1772788153823,0.4546582,88.143,88.101,0.46010403]
[1772788154013,0.4546582,88.141,88.101,0.46010403]
[1772788154209,0.4546582,88.139,88.101,0.46010403]
[1772788154432,0.4546582,88.137,88.101,0.46010403]
[1772788154737,0.4546582,88.135,88.101,0.46010403]
[1772788155059,0.4546582,88.133,88.101,0.46010403]
[1772788155330,0.4546582,88.131,88.101,0.46010403]
[1772788155537,0.4546582,88.129,88.103,0.46010403]
[1772788156031,0.4546582,88.144,88.103,0.46010403]
[1772788156336,1.1310298,88.143,88.103,0.46010403]
[1772788156539,1.1310298,88.148,88.103,0.46010403]
[1772788157335,0.4546582,88.147,88.103,0.46010403]
[1772788157530,0.4546582,88.145,88.105,0.46010403]
[1772788157729,0.4546582,88.143,88.105,0.46010403]
[1772788157933,0.4546582,88.141,88.105,0.46010403]
[1772788159131,1.1310298,88.145,88.105,0.46010403]
[1772788159520,1.585688,88.147,88.107,0.46010403]
[1772788159721,0.4546582,88.147,88.108,0.46010403]
[1772788160015,11.79839584,88.155,88.108,0.46010403]
[1772788160227,1.585688,88.154,88.108,0.46010403]
[1772788160531,1.1310298,88.154,88.108,0.46010403]
[1772788161251,1.1310298,88.159,88.111,0.46010403]
[1772788161544,1.1310298,88.164,88.114,0.46010403]
[1772788161917,1.585688,88.164,88.114,0.46010403]
[1772788162718,0.4546582,88.163,88.114,0.46010403]
[1772788163233,1.585688,88.163,88.114,0.46010403]
[1772788163949,0.4546582,88.162,88.117,0.46010403]
[1772788164441,1.585688,88.162,88.117,0.46010403]
[1772788164938,0.4546582,88.162,88.117,0.46010403]
[1772788165133,0.4546582,88.161,88.117,0.46010403]
[1772788166056,0.4546582,88.161,88.12,0.46010403]
[1772788166852,0.4546582,88.159,88.12,0.46010403]
[1772788167051,0.4546582,88.157,88.12,0.46010403]
[1772788167339,0.4546582,88.156,88.12,0.46010403]
[1772788168438,0.4546582,88.154,88.121,11.34803281]
[1772788168650,0.4546582,88.152,88.121,11.34803281]
[1772788168854,0.4546582,88.15,88.121,11.34803281]
[1772788169041,0.4546582,88.15,88.121,11.80813684]
[1772788171531,0.48157138,88.146,88.114,11.34893433]
[1772788171848,0.48157138,88.144,88.114,11.34893433]
[1772788172031,0.48157138,88.142,88.114,11.34893433]
[1772788172226,0.48157138,88.14,88.114,11.34893433]
[1772788172442,0.48157138,88.129,88.087,0.47592098]
[1772788172644,0.48157138,88.109,88.07,0.47592098]
[1772788172948,0.48157138,88.109,88.072,11.35431221]
[1772788173142,0.48157138,88.109,88.06,28.58972784]
[1772788173143,0.48157138,88.099,88.061,0.47592098]
[1772788173529,0.48157138,88.117,88.065,0.47592098]
[1772788174144,39.71946707,88.118,88.065,0.47592098]
[1772788174145,0.48157138,88.109,88.065,0.47592098]
[1772788174534,0.48157138,88.108,88.067,0.47592098]
[1772788175552,0.48157138,88.108,88.069,0.47592098]
[1772788176348,0.48157138,88.106,88.068,11.35486215]
[1772788176737,0.48157138,88.099,88.06,0.2]
[1772788176949,0.48157138,88.098,88.05,11.35718341]
[1772788177148,0.48157138,88.089,88.041,0.47592098]
[1772788177449,0.48157138,88.079,88.041,0.47592098]
[1772788177652,0.2160472,88.069,88.018,11.36131245]
[1772788177853,0.2160472,88.059,88.018,11.83723343]
[1772788178053,39.73750538,88.078,88.01,0.2]
[1772788178054,0.2160472,88.049,88.01,0.2]
[1772788178350,3.5949144,88.03,87.991,0.4919764]
[1772788178541,3.5949144,88.03,87.991,11.85667929]
[1772788178738,3.69383402,88.065,87.991,28.90395816]
[1772788178944,3.5949144,88.03,87.993,0.4919764]
[1772788179244,0.48157138,88.029,87.999,0.4919764]
[1772788179639,0.48157138,88.027,87.999,0.4919764]
[1772788180149,0.48157138,88.027,87.959,11.34960446]
[1772788180150,11.35757038,88.047,87.985,39.77950786]
[1772788180347,3.5949144,88.03,87.985,11.36557367]
[1772788181053,11.35757038,88.047,87.989,0.14216157]
[1772788181238,11.35602266,88.059,87.99,0.4919764]
[1772788181438,0.14216157,88.079,87.99,0.4919764]
[1772788181638,3.5949144,88.07,87.99,0.4919764]
[1772788181954,39.74156627,88.069,87.996,0.4919764]
[1772788182151,130.57943203,88.069,87.996,0.4919764]
[1772788182353,0.28432314,88.059,87.996,0.4919764]
[1772788182762,0.28432314,88.068,87.996,0.4919764]
[1772788183056,9.00685294,88.06,87.996,0.4919764]
[1772788183262,0.28432314,88.068,87.996,0.4919764]
[1772788183740,9.00685294,88.07,87.995,0.28432314]
[1772788183741,12.48602088,88.067,88.001,0.4919764]
[1772788183941,9.00685294,88.06,88.002,0.4919764]
[1772788184759,1.1310298,88.059,88.002,0.4919764]
[1772788185755,11.3573124,88.049,88.003,11.36324898]
[1772788186150,11.3573124,88.049,88.003,11.85522538]
[1772788186458,1.1310298,88.048,88.003,11.85522538]
[1772788186659,1.1310298,88.048,88.004,0.4919764]
[1772788187439,40.02137736,88.079,88.007,0.4919764]
[1772788187643,40.02137736,88.079,88.008,0.4919764]
[1772788187843,11.35344406,88.079,88.011,0.4919764]
[1772788188441,11.35228407,88.088,88.014,0.4919764]
[1772788189164,39.73299426,88.088,88.014,0.4919764]
[1772788189460,1.3,88.08,88.014,0.4919764]
[1772788189957,11.35344406,88.079,88.019,0.4919764]
[1772788190141,11.35344406,88.079,88.02,0.4919764]
[1772788190337,1.3,88.08,88.02,0.4919764]
[1772788192600,1.3,88.08,88.026,0.4919764]
[1772788192766,11.35112432,88.097,88.026,0.4919764]
[1772788194453,11.35112432,88.097,88.025,0.28432314]
[1772788194454,12.65204919,88.09,88.031,0.4919764]
[1772788194651,12.65204919,88.09,88.032,0.4919764]
[1772788195167,28.37114496,88.118,88.032,0.4919764]
[1772788195375,47.2,88.137,88.032,0.4919764]
[1772788195376,0.14216157,88.119,88.032,0.4919764]
[1772788195746,0.28432314,88.119,88.032,0.4919764]
[1772788196451,0.28432314,88.117,88.037,0.4919764]
[1772788196652,9.00685294,88.11,88.038,0.4919764]
[1772788197748,39.72352426,88.109,88.043,0.4919764]
[1772788197949,39.72352426,88.109,88.044,0.4919764]
[1772788198872,0.28432314,88.108,88.044,0.4919764]
[1772788199267,9.00685294,88.1,88.044,0.4919764]
[1772788199651,0.28432314,88.108,88.044,0.4919764]
[1772788199949,39.71811485,88.121,88.049,0.28432314]
[1772788200274,0.28432314,88.12,88.05,0.4919764]
[1772788200863,9.29117608,88.12,88.05,0.4919764]
[1772788201671,39.71811485,88.121,88.05,0.4919764]
[1772788201852,28.37008204,88.121,88.051,39.74969051]
[1772788202054,28.37008204,88.121,88.053,0.4919764]
[1772788202762,9.00685294,88.12,88.053,0.4919764]
[1772788204275,9.00685294,88.11,88.055,0.4919764]
[1772788204471,3.59853131,88.11,88.055,0.4919764]
[1772788204856,87.20333947,88.119,88.055,0.4919764]
[1772788206068,3.59853131,88.11,88.057,0.4919764]
[1772788206274,3.59853131,88.1,88.056,11.35640955]
[1772788206474,96.74479137,88.119,88.032,0.4919764]
[1772788206475,3.60079904,88.08,88.032,0.4919764]
[1772788208178,4.90079904,88.08,88.032,0.4919764]
[1772788208377,0.28432314,88.078,88.026,0.4919764]
[1772788208758,9.00348424,88.07,88.026,0.4919764]
[1772788209476,0.28432314,88.078,88.026,0.4919764]
[1772788210357,0.14216157,88.076,88.027,11.36015086]
[1772788210563,0.14216157,88.076,88.017,28.40353702]
[1772788210564,0.28432314,88.059,88.006,0.4919764]
[1772788210868,0.28432314,88.059,88.009,0.4919764]
[1772788211782,39.74653068,88.058,88.01,11.36234518]
[1772788211968,0.28432314,88.057,88.011,0.4919764]
[1772788212166,0.28432314,88.057,88.01,11.36234518]
[1772788212374,9.00348424,88.05,88.01,11.36234518]
[1772788212570,0.28432314,88.057,88.01,11.36234518]
[1772788212776,0.28432314,88.057,88.011,0.4919764]
[1772788214078,39.74743344,88.056,88.012,11.85406338]
[1772788214280,39.74743344,88.056,88.013,0.4919764]
[1772788215693,47.2,88.055,88.013,0.4919764]
[1772788216391,39.74833623,88.054,88.014,11.85380519]
[1772788217979,39.74833623,88.054,88.015,0.4919764]
[1772788218486,47.2,88.055,88.017,0.4919764]
[1772788218660,47.2,88.077,88.017,0.4919764]
[1772788219086,0.28432314,88.076,88.017,0.4919764]
[1772788219463,28.38503618,88.075,88.017,0.4919764]
[1772788220584,9.00348424,88.07,88.019,0.4919764]
[1772788220971,10.30348424,88.07,88.019,0.4919764]
[1772788221685,9.00348424,88.06,88.019,0.4919764]
[1772788221989,1.3,88.07,88.01,0.4919764]
[1772788221990,9.00348424,88.05,88.01,0.4919764]
[1772788222385,0.28432314,88.058,88.01,0.4919764]
[1772788223084,11.35615162,88.058,88.012,0.4919764]
[1772788223280,39.74653068,88.058,88.012,0.4919764]
[1772788223583,9.00348424,88.05,88.011,11.36221608]
[1772788224184,0.28432314,88.057,88.012,0.4919764]
[1772788225396,11.35640955,88.056,88.014,0.4919764]
[1772788225571,39.74743344,88.056,88.014,0.4919764]
[1772788225891,9.00348424,88.05,88.014,0.4919764]
[1772788226092,39.74743344,88.056,88.014,0.4919764]
[1772788228903,9.00348424,88.05,88.008,0.4919764]
[1772788229396,0.28432314,88.049,88.008,0.4919764]
[1772788229590,9.00348424,88.04,88.0,0.4919764]
[1772788229791,0.28432314,88.047,88.0,40.26470366]
[1772788229976,0.28432314,88.047,88.001,0.4919764]
[1772788230785,11.35769938,88.046,88.002,11.3633781]
[1772788230984,47.2,88.045,88.003,0.4919764]
[1772788231580,47.2,88.045,88.002,11.3633781]
[1772788231788,47.2,88.045,87.986,0.4919764]
[1772788231789,3.60293466,88.02,87.986,0.4919764]
[1772788232605,3.60293466,88.03,87.986,0.4919764]
[1772788232782,0.28432314,88.027,87.986,0.4919764]
[1772788234305,0.28432314,88.027,87.984,0.269283]
[1772788234483,0.28432314,88.019,87.984,0.269283]
[1772788234684,3.60293466,88.01,87.984,0.269283]
[1772788234918,3.60293466,88.0,87.957,0.4919764]
[1772788235585,0.28432314,88.009,87.957,0.4919764]
[1772788236283,3.60293466,87.99,87.953,11.36970882]
[1772788236618,0.28432314,87.999,87.954,0.4919764]
[1772788236986,39.9153408,87.999,87.956,0.4919764]
[1772788237183,11.36294076,88.006,87.956,0.4919764]
[1772788239110,11.36294076,88.006,87.958,0.4919764]
[1772788239609,9.01714313,88.0,87.958,0.4919764]
[1772788240716,11.36294076,88.006,87.951,0.4919764]
[1772788240717,9.01714313,87.99,87.951,0.4919764]
[1772788240885,47.2,87.999,87.952,11.36983809]
[1772788241203,9.01714313,87.99,87.954,0.4919764]
[1772788241390,9.01714313,87.99,87.955,0.4919764]
[1772788241594,9.01714313,87.99,87.915,0.14216157]
[1772788241595,9.01714313,87.99,87.947,0.4919764]
[1772788241806,9.01714313,87.98,87.948,11.3703552]
[1772788242009,0.28432314,87.992,87.927,0.4919764]
[1772788242199,9.01714313,87.97,87.927,0.4919764]
[1772788242400,9.01714313,87.95,87.91,0.4919764]
[1772788242594,9.01714313,87.95,87.905,11.37590277]
[1772788242795,9.01714313,87.96,87.922,0.4919764]
[1772788242985,9.01714313,87.98,87.922,0.4919764]
[1772788243191,11.36634878,87.979,87.924,0.4919764]
[1772788243587,39.78222074,87.979,87.924,0.4919764]
[1772788245696,39.77769947,87.989,87.926,0.4919764]
[1772788245912,1.3,87.98,87.926,0.4919764]
[1772788247907,11.36634878,87.979,87.928,0.4919764]
[1772788248821,39.78222074,87.979,87.93,0.4919764]
[1772788249017,9.01714313,87.97,87.93,0.4919764]
[1772788249726,9.01714313,87.97,87.921,0.4919764]
[1772788251022,9.01714313,87.97,87.923,0.4919764]
[1772788253501,9.01714313,87.97,87.92,0.2]
[1772788253699,9.01714313,87.95,87.92,0.2]
[1772788254113,9.01714313,87.96,87.92,0.2]
[1772788254916,9.01714313,87.95,87.92,0.2]
[1772788255849,56.98036593,87.969,87.92,0.2]
[1772788256002,9.01714313,87.95,87.92,0.2]
[1772788257499,9.01714313,87.94,87.92,0.2]
[1772788258101,11.37151889,87.939,87.92,0.2]
[1772788258305,39.80031612,87.939,87.92,0.2]
[1772788258505,39.80031612,87.939,87.914,14.53284393]
[1772788259129,39.80031612,87.939,87.872,0.4919764]
[1772788259130,3.61230085,87.92,87.872,0.4919764]
[1772788259426,3.61230085,87.9,87.872,0.4919764]
[1772788259611,0.28432314,87.938,87.872,11.38012289]
[1772788259809,0.28432314,87.938,87.839,3.69383402]
[1772788259810,3.61230085,87.91,87.873,0.4919764]
[1772788260025,3.61230085,87.91,87.874,0.4919764]
[1772788260026,11.37539956,87.909,87.874,0.4919764]
[1772788260206,11.37074307,87.945,87.874,0.4919764]
[1772788260404,3.61230085,87.93,87.874,0.4919764]
[1772788260624,28.42766755,87.943,87.874,0.4919764]
[1772788260625,3.61230085,87.91,87.874,0.4919764]
[1772788261020,0.28432314,87.922,87.84,39.84517303]
[1772788261021,3.61230085,87.9,87.844,0.4919764]
[1772788261217,3.61230085,87.89,87.844,0.4919764]
[1772788261419,0.28432314,87.912,87.844,0.4919764]
[1772788261420,3.61230085,87.9,87.844,0.4919764]
[1772788261707,0.28432314,87.912,87.844,0.4919764]
[1772788261911,3.61230085,87.91,87.844,0.4919764]
[1772788262134,39.81389846,87.909,87.846,0.4919764]
[1772788262316,1.3,87.9,87.846,0.4919764]
[1772788263434,39.81389846,87.909,87.849,0.4919764]
[1772788263928,3.61230085,87.89,87.849,0.4919764]
[1772788264119,39.8229585,87.889,87.849,0.4919764]
[1772788264431,3.61230085,87.88,87.849,0.4919764]
[1772788265237,40.10728164,87.889,87.849,0.4919764]
[1772788265822,3.61230085,87.88,87.849,0.4919764]
[1772788266021,3.61230085,87.87,87.83,0.4919764]
[1772788266219,3.61230085,87.87,87.768,45.57440154]
[1772788266220,3.61230085,87.85,87.814,11.87955764]
[1772788266433,0.14216157,87.839,87.824,1e-08]
[1772788266629,11.38200277,87.858,87.824,0.49197641]
[1772788266811,11.38200277,87.858,87.825,0.4919764]
[1772788267017,11.38122532,87.865,87.825,0.4919764]
[1772788268620,0.28432314,87.877,87.827,0.4919764]
[1772788269236,39.8034845,87.932,87.83,0.4919764]
[1772788269534,15.27006757,87.93,87.831,0.4919764]
[1772788269739,3.61753245,87.93,87.831,0.4919764]
[1772788270323,39.8034845,87.932,87.835,0.4919764]
[1772788270529,40.08916567,87.929,87.84,3.69383402]
[1772788270730,39.80484253,87.929,87.842,0.4919764]
[1772788271326,3.61753245,87.92,87.842,0.4919764]
[1772788271528,0.14216157,87.928,87.842,0.4919764]
[1772788271838,0.14216157,87.928,87.847,0.4919764]
[1772788272025,0.28432314,87.928,87.847,0.4919764]
[1772788273140,102.33133296,87.95,87.85,0.4919764]
[1772788273141,11.37151889,87.939,87.85,0.4919764]
[1772788273843,11.37151889,87.939,87.848,3.69383402]
[1772788273844,40.08011387,87.949,87.856,0.4919764]